[Event "*** Titled Tuesday Blitz"]
[Site "Chess.com"]
[Date "2020.11.24"]
[Round "4"]
[White "NikolaGry"]
[Black "Nitzan_Steinberg"]
[Result "0-1"]
[WhiteElo "2730"]
[BlackElo "2865"]
[TimeControl "180+1"]
[EndTime "10:56:40 PST"]
[Termination "Nitzan_Steinberg won on time"]

1. b3 {[%clk 0:03:00.9]} 1... e5 {[%clk 0:02:59.2]} 2. Bb2 {[%clk 0:03:00.9]}
2... Nc6 {[%clk 0:02:58.9]} 3. c4 {[%clk 0:03:01.4]} 3... g6 {[%clk 0:02:53.2]}
4. e3 {[%clk 0:03:01.2]} 4... Bg7 {[%clk 0:02:53.1]} 5. Nf3 {[%clk 0:03:01.4]}
5... Nge7 {[%clk 0:02:51.5]} 6. d4 {[%clk 0:03:01.2]} 6... exd4 {[%clk
0:02:51.8]} 7. Nxd4 {[%clk 0:03:01.1]} 7... O-O {[%clk 0:02:52.1]} 8. Be2 {[%clk
0:02:58.4]} 8... d6 {[%clk 0:02:46]} 9. O-O {[%clk 0:02:51.2]} 9... Re8 {[%clk
0:02:41.2]} 10. Nxc6 {[%clk 0:02:48]} 10... Nxc6 {[%clk 0:02:40]} 11. Bxg7
{[%clk 0:02:46.2]} 11... Kxg7 {[%clk 0:02:40.9]} 12. Nc3 {[%clk 0:02:44.9]}
12... Bf5 {[%clk 0:02:38.8]} 13. Qd2 {[%clk 0:02:40.1]} 13... h5 {[%clk
0:02:31.1]} 14. Nd5 {[%clk 0:02:37.3]} 14... Be6 {[%clk 0:02:19.6]} 15. Qb2+
{[%clk 0:02:30.4]} 15... f6 {[%clk 0:02:19.6]} 16. Rac1 {[%clk 0:02:20]} 16...
a5 {[%clk 0:02:18.4]} 17. a3 {[%clk 0:02:17.6]} 17... Bf7 {[%clk 0:02:17]} 18.
Rfd1 {[%clk 0:02:14.7]} 18... b6 {[%clk 0:02:14.1]} 19. Nf4 {[%clk 0:01:59.5]}
19... Ne5 {[%clk 0:02:09]} 20. Bd3 {[%clk 0:01:51.8]} 20... g5 {[%clk
0:02:06.2]} 21. Nd5 {[%clk 0:01:48.4]} 21... h4 {[%clk 0:02:01]} 22. h3 {[%clk
0:01:42.5]} 22... Bh5 {[%clk 0:01:33.4]} 23. f3 {[%clk 0:01:29.9]} 23... c6
{[%clk 0:01:08.4]} 24. Nc3 {[%clk 0:01:25.8]} 24... Qe7 {[%clk 0:00:59.9]} 25.
e4 {[%clk 0:01:01.6]} 25... Rad8 {[%clk 0:00:53.3]} 26. Be2 {[%clk 0:01:01.4]}
26... Ng6 {[%clk 0:00:52.1]} 27. b4 {[%clk 0:00:58.1]} 27... Qe5 {[%clk
0:00:49.1]} 28. b5 {[%clk 0:00:54.5]} 28... cxb5 {[%clk 0:00:46.1]} 29. Qxb5
{[%clk 0:00:53.5]} 29... Nf4 {[%clk 0:00:43.9]} 30. Bf1 {[%clk 0:00:47.8]} 30...
Qc5+ {[%clk 0:00:03]} 31. Qxc5 {[%clk 0:00:47.1]} 31... dxc5 {[%clk 0:00:03.9]}
32. Rb1 {[%clk 0:00:43.3]} 32... Rxd1 {[%clk 0:00:03.4]} 33. Rxd1 {[%clk
0:00:43]} 33... Bf7 {[%clk 0:00:04.3]} 34. Nd5 {[%clk 0:00:38.5]} 34... Rd8
{[%clk 0:00:03.9]} 35. Rb1 {[%clk 0:00:38.1]} 35... Bxd5 {[%clk 0:00:04.2]} 36.
cxd5 {[%clk 0:00:38.1]} 36... Rd6 {[%clk 0:00:04.8]} 37. Kf2 {[%clk 0:00:35.7]}
37... f5 {[%clk 0:00:05.2]} 38. Re1 {[%clk 0:00:26.5]} 38... fxe4 {[%clk
0:00:04.2]} 39. fxe4 {[%clk 0:00:26.2]} 39... Ng6 {[%clk 0:00:04.5]} 40. Bb5
{[%clk 0:00:22.7]} 40... Ne5 {[%clk 0:00:04.6]} 41. Ke3 {[%clk 0:00:22.9]} 41...
Rf6 {[%clk 0:00:04.5]} 42. Be2 {[%clk 0:00:18.6]} 42... Kf8 {[%clk 0:00:04.1]}
43. a4 {[%clk 0:00:18.7]} 43... Ke7 {[%clk 0:00:04.4]} 44. Rg1 {[%clk
0:00:18.7]} 44... Kd6 {[%clk 0:00:04.3]} 45. g3 {[%clk 0:00:19]} 45... c4 {[%clk
0:00:03.9]} 46. gxh4 {[%clk 0:00:16.3]} 46... gxh4 {[%clk 0:00:04.8]} 47. Rg8
{[%clk 0:00:13.8]} 47... c3 {[%clk 0:00:03.4]} 48. Rc8 {[%clk 0:00:13.4]} 48...
Rg6 {[%clk 0:00:03.9]} 49. Rxc3 {[%clk 0:00:12.5]} 49... Rg3+ {[%clk 0:00:04.2]}
50. Kd2 {[%clk 0:00:12.5]} 50... Rg2 {[%clk 0:00:03.6]} 51. Ke1 {[%clk
0:00:10.7]} 51... Nd7 {[%clk 0:00:03.9]} 52. Rc6+ {[%clk 0:00:10.1]} 52... Ke5
{[%clk 0:00:04.5]} 53. Re6+ {[%clk 0:00:10]} 53... Kd4 {[%clk 0:00:04.8]} 54.
Bb5 {[%clk 0:00:06.3]} 54... Nc5 {[%clk 0:00:04.2]} 55. Rh6 {[%clk 0:00:04.2]}
55... Ke3 {[%clk 0:00:04.4]} 56. Kd1 {[%clk 0:00:03.3]} 56... Nxe4 {[%clk
0:00:04.2]} 57. d6 {[%clk 0:00:03.5]} 57... Rd2+ {[%clk 0:00:03.2]} 58. Kc1
{[%clk 0:00:03.7]} 58... Rxd6 {[%clk 0:00:04.1]} 59. Rxh4 {[%clk 0:00:04]} 59...
Rd4 {[%clk 0:00:04]} 60. Rg4 {[%clk 0:00:03]} 60... Rb4 {[%clk 0:00:04.4]} 61.
h4 {[%clk 0:00:02.3]} 61... Rb3 {[%clk 0:00:03.7]} 62. h5 {[%clk 0:00:01.7]}
62... Rc3+ {[%clk 0:00:04.1]} 0-1

[Event "*** Titled Tuesday Blitz"]
[Site "Chess.com"]
[Date "2020.11.24"]
[Round "4"]
[White "Tsyhanchuk_Stanislav"]
[Black "kkpanu9"]
[Result "0-1"]
[WhiteElo "2252"]
[BlackElo "2064"]
[TimeControl "180+1"]
[EndTime "10:56:41 PST"]
[Termination "kkpanu9 won on time"]

1. e4 {[%clk 0:03:00.9]} 1... c5 {[%clk 0:02:59.8]} 2. Nf3 {[%clk 0:02:56.7]}
2... d6 {[%clk 0:02:58.7]} 3. d4 {[%clk 0:02:56.4]} 3... cxd4 {[%clk 0:02:57.6]}
4. Nxd4 {[%clk 0:02:57.3]} 4... Nf6 {[%clk 0:02:58]} 5. Nc3 {[%clk 0:02:57.8]}
5... g6 {[%clk 0:02:58.5]} 6. Be3 {[%clk 0:02:56.3]} 6... Bg7 {[%clk 0:02:58.7]}
7. f3 {[%clk 0:02:57]} 7... O-O {[%clk 0:02:58.8]} 8. Qd2 {[%clk 0:02:57.6]}
8... Nc6 {[%clk 0:02:59.1]} 9. O-O-O {[%clk 0:02:57.1]} 9... Nxd4 {[%clk
0:02:49.9]} 10. Bxd4 {[%clk 0:02:58]} 10... Be6 {[%clk 0:02:50.3]} 11. Kb1
{[%clk 0:02:57]} 11... Qc7 {[%clk 0:02:50.5]} 12. g4 {[%clk 0:02:57]} 12... Rfc8
{[%clk 0:02:50.8]} 13. h4 {[%clk 0:02:55.8]} 13... Qa5 {[%clk 0:02:50.7]} 14. a3
{[%clk 0:02:53.2]} 14... Rab8 {[%clk 0:02:50.7]} 15. h5 {[%clk 0:02:38.2]} 15...
b5 {[%clk 0:02:20.1]} 16. Nd5 {[%clk 0:02:30.9]} 16... Qxd2 {[%clk 0:02:14.8]}
17. Nxf6+ {[%clk 0:02:29.2]} 17... Bxf6 {[%clk 0:02:14]} 18. Rxd2 {[%clk
0:02:27.7]} 18... Bxd4 {[%clk 0:01:57.8]} 19. Rxd4 {[%clk 0:02:28.6]} 19... Kg7
{[%clk 0:01:52]} 20. Bh3 {[%clk 0:01:23.2]} 20... Rc5 {[%clk 0:01:21.2]} 21. Bf1
{[%clk 0:01:07]} 21... Rbc8 {[%clk 0:01:19.6]} 22. Rh2 {[%clk 0:01:06.4]} 22...
a5 {[%clk 0:01:08.4]} 23. c3 {[%clk 0:00:56.3]} 23... a4 {[%clk 0:00:55.5]} 24.
Rb4 {[%clk 0:00:48.3]} 24... Rb8 {[%clk 0:00:35.2]} 25. Be2 {[%clk 0:00:42.1]}
25... Kf6 {[%clk 0:00:28.5]} 26. f4 {[%clk 0:00:39.6]} 26... Bc4 {[%clk
0:00:22.5]} 27. Bxc4 {[%clk 0:00:09.5]} 27... Rxc4 {[%clk 0:00:22.7]} 28. g5+
{[%clk 0:00:01.2]} 28... Ke6 {[%clk 0:00:22.4]} 29. Rxc4 {[%clk 0:00:01.9]}
29... bxc4 {[%clk 0:00:22.2]} 30. Kc2 {[%clk 0:00:02.7]} 30... d5 {[%clk
0:00:20.2]} 31. exd5+ {[%clk 0:00:02.1]} 31... Kxd5 {[%clk 0:00:20.7]} 32. hxg6
{[%clk 0:00:02.2]} 32... hxg6 {[%clk 0:00:20.2]} 33. Rh7 {[%clk 0:00:02.6]}
33... Ke6 {[%clk 0:00:20.6]} 34. Rh3 {[%clk 0:00:01.6]} 34... Rb5 {[%clk
0:00:19.3]} 35. Rf3 {[%clk 0:00:01.9]} 35... Kf5 {[%clk 0:00:19.4]} 36. Rf2
{[%clk 0:00:01.8]} 36... Rd5 {[%clk 0:00:18.8]} 37. Rf1 {[%clk 0:00:01.5]} 37...
Ke4 {[%clk 0:00:18.7]} 38. Rf2 {[%clk 0:00:01.4]} 38... Ke3 {[%clk 0:00:18.9]}
39. Rf1 {[%clk 0:00:01.9]} 39... Rd2+ {[%clk 0:00:18.9]} 40. Kc1 {[%clk
0:00:01.7]} 40... Rh2 {[%clk 0:00:17.3]} 41. Rg1 {[%clk 0:00:01.9]} 41... Kxf4
{[%clk 0:00:16.4]} 42. Rf1+ {[%clk 0:00:02.6]} 42... Kxg5 {[%clk 0:00:15.2]} 43.
Rxf7 {[%clk 0:00:03.5]} 43... Re2 {[%clk 0:00:14.3]} 44. Rf1 {[%clk 0:00:02.7]}
44... Kh5 {[%clk 0:00:09.8]} 45. Rh1+ {[%clk 0:00:02.9]} 45... Kg4 {[%clk
0:00:09.9]} 46. Rg1+ {[%clk 0:00:03.5]} 46... Kf5 {[%clk 0:00:10.5]} 47. Rf1+
{[%clk 0:00:03.8]} 47... Ke6 {[%clk 0:00:10.5]} 48. Rg1 {[%clk 0:00:03.3]} 48...
Kf6 {[%clk 0:00:08.7]} 49. Rf1+ {[%clk 0:00:03.8]} 49... Kg7 {[%clk 0:00:08.9]}
50. Rg1 {[%clk 0:00:03.4]} 50... e5 {[%clk 0:00:08.9]} 51. Rg3 {[%clk
0:00:02.7]} 51... e4 {[%clk 0:00:07.5]} 52. Rg4 {[%clk 0:00:03]} 52... Kf6
{[%clk 0:00:07]} 53. Rg3 {[%clk 0:00:02]} 53... Kf5 {[%clk 0:00:06.7]} 54. Rg1
{[%clk 0:00:01.5]} 54... g5 {[%clk 0:00:07.1]} 55. Rf1+ {[%clk 0:00:01.8]} 55...
Ke5 {[%clk 0:00:07.6]} 56. Rg1 {[%clk 0:00:02]} 56... e3 {[%clk 0:00:07.2]} 57.
Rxg5+ {[%clk 0:00:01.9]} 57... Kf4 {[%clk 0:00:07.3]} 58. Rg1 {[%clk 0:00:02.5]}
58... Kf3 {[%clk 0:00:07.4]} 59. Rh1 {[%clk 0:00:02]} 59... Ke4 {[%clk
0:00:07.1]} 60. Rh4+ {[%clk 0:00:02]} 60... Kf3 {[%clk 0:00:05.9]} 61. Rh3+
{[%clk 0:00:02.1]} 61... Kg2 {[%clk 0:00:05.1]} 62. Rh4 {[%clk 0:00:02.1]} 62...
Rf2 {[%clk 0:00:04.5]} 63. Rxc4 {[%clk 0:00:01.2]} 63... Kf1 {[%clk 0:00:04.1]}
64. Re4 {[%clk 0:00:01.3]} 64... e2 {[%clk 0:00:04.8]} 0-1

[Event "*** Titled Tuesday Blitz"]
[Site "Chess.com"]
[Date "2020.11.24"]
[Round "4"]
[White "juancruzarias"]
[Black "ViktoriyaTarasova"]
[Result "0-1"]
[WhiteElo "2541"]
[BlackElo "2300"]
[TimeControl "180+1"]
[EndTime "10:56:43 PST"]
[Termination "ViktoriyaTarasova won on time"]

1. d4 {[%clk 0:03:00.9]} 1... Nf6 {[%clk 0:02:59.7]} 2. Bg5 {[%clk 0:03:00.7]}
2... e6 {[%clk 0:02:59.1]} 3. Nd2 {[%clk 0:02:59.9]} 3... d5 {[%clk 0:02:57.4]}
4. e3 {[%clk 0:02:59.5]} 4... Be7 {[%clk 0:02:54.5]} 5. Bd3 {[%clk 0:03:00]}
5... b6 {[%clk 0:02:54.2]} 6. Qe2 {[%clk 0:02:59.3]} 6... Bb7 {[%clk 0:02:54.4]}
7. f4 {[%clk 0:02:56.3]} 7... Ne4 {[%clk 0:02:46.1]} 8. Bxe7 {[%clk 0:02:55.7]}
8... Qxe7 {[%clk 0:02:45.7]} 9. Ngf3 {[%clk 0:02:56.2]} 9... Nd7 {[%clk
0:02:44.5]} 10. O-O {[%clk 0:02:56.6]} 10... O-O {[%clk 0:02:43.3]} 11. Ne5
{[%clk 0:02:48.4]} 11... f6 {[%clk 0:02:33.9]} 12. Nxd7 {[%clk 0:02:47.7]} 12...
Qxd7 {[%clk 0:02:34.5]} 13. Nxe4 {[%clk 0:02:43.8]} 13... dxe4 {[%clk
0:02:33.6]} 14. Bc4 {[%clk 0:02:44.3]} 14... Bd5 {[%clk 0:02:25]} 15. Bb3 {[%clk
0:02:28.5]} 15... Bxb3 {[%clk 0:02:20.6]} 16. axb3 {[%clk 0:02:28.9]} 16... a5
{[%clk 0:02:21.1]} 17. c4 {[%clk 0:02:04.7]} 17... Rad8 {[%clk 0:02:13.9]} 18.
Rfd1 {[%clk 0:01:54.8]} 18... Qe7 {[%clk 0:02:07.7]} 19. Qc2 {[%clk 0:01:53.8]}
19... f5 {[%clk 0:02:03.6]} 20. Qc3 {[%clk 0:01:19.5]} 20... Rd7 {[%clk
0:01:53.3]} 21. Rd2 {[%clk 0:01:19.1]} 21... Rfd8 {[%clk 0:01:49.8]} 22. Rad1
{[%clk 0:01:19.6]} 22... Kf7 {[%clk 0:01:10.1]} 23. h3 {[%clk 0:01:19.2]} 23...
h6 {[%clk 0:01:08.8]} 24. Qc2 {[%clk 0:01:18.2]} 24... Kg8 {[%clk 0:00:58.4]}
25. Qc3 {[%clk 0:01:18.4]} 25... Rd6 {[%clk 0:00:50]} 26. Kh1 {[%clk 0:01:18.3]}
26... Qd7 {[%clk 0:00:47.6]} 27. d5 {[%clk 0:01:08.4]} 27... exd5 {[%clk
0:00:42.8]} 28. Rxd5 {[%clk 0:01:09.3]} 28... Qe6 {[%clk 0:00:33.8]} 29. Qd4
{[%clk 0:01:00.1]} 29... Rxd5 {[%clk 0:00:32.3]} 30. cxd5 {[%clk 0:01:00]} 30...
Qd6 {[%clk 0:00:32.2]} 31. Qc4 {[%clk 0:00:58.5]} 31... Kh7 {[%clk 0:00:30.6]}
32. Rd4 {[%clk 0:00:58.5]} 32... Rd7 {[%clk 0:00:30.6]} 33. Kh2 {[%clk
0:00:58.6]} 33... g6 {[%clk 0:00:30.2]} 34. Kg1 {[%clk 0:00:56]} 34... Kg7
{[%clk 0:00:28.1]} 35. Qc3 {[%clk 0:00:50.2]} 35... Kh7 {[%clk 0:00:28.2]} 36.
Qc2 {[%clk 0:00:48.8]} 36... Kg7 {[%clk 0:00:27.7]} 37. Qc1 {[%clk 0:00:46.5]}
37... Kh7 {[%clk 0:00:27.7]} 38. Qc3 {[%clk 0:00:46.9]} 38... Rd8 {[%clk
0:00:25.1]} 39. Rc4 {[%clk 0:00:46.2]} 39... Rd7 {[%clk 0:00:25.6]} 40. Kh2
{[%clk 0:00:39.9]} 40... Qxd5 {[%clk 0:00:10.3]} 41. Rxc7 {[%clk 0:00:39.7]}
41... Qd6 {[%clk 0:00:09.8]} 42. Rc8 {[%clk 0:00:34]} 42... Rg7 {[%clk
0:00:07.6]} 43. Ra8 {[%clk 0:00:18.7]} 43... g5 {[%clk 0:00:04.8]} 44. Qc8
{[%clk 0:00:19.1]} 44... gxf4 {[%clk 0:00:04.7]} 45. Qxf5+ {[%clk 0:00:18.1]}
45... Rg6 {[%clk 0:00:03.7]} 46. Ra7+ {[%clk 0:00:18.6]} 46... Kh8 {[%clk
0:00:03.3]} 47. exf4 {[%clk 0:00:18.2]} 47... Qf6 {[%clk 0:00:01.9]} 48. Qe5
{[%clk 0:00:14.8]} 48... Qxe5 {[%clk 0:00:01.3]} 49. fxe5 {[%clk 0:00:15.7]}
49... Re6 {[%clk 0:00:01.9]} 50. Kg1 {[%clk 0:00:08.6]} 50... Kg8 {[%clk
0:00:01.8]} 51. Rb7 {[%clk 0:00:08.7]} 51... Rxe5 {[%clk 0:00:02.5]} 52. Kf2
{[%clk 0:00:09.2]} 52... e3+ {[%clk 0:00:02.8]} 53. Ke2 {[%clk 0:00:09.1]} 53...
Rb5 {[%clk 0:00:03.5]} 54. Kxe3 {[%clk 0:00:06.6]} 54... Rxb3+ {[%clk
0:00:04.4]} 55. Kf4 {[%clk 0:00:07.2]} 55... Rxb2 {[%clk 0:00:04.7]} 56. g4
{[%clk 0:00:07.7]} 56... a4 {[%clk 0:00:04.8]} 57. Kf5 {[%clk 0:00:08]} 57... b5
{[%clk 0:00:05]} 58. Kg6 {[%clk 0:00:08.3]} 58... Kf8 {[%clk 0:00:04.7]} 59. Ra7
{[%clk 0:00:04.4]} 59... Ke8 {[%clk 0:00:02.6]} 60. Kxh6 {[%clk 0:00:04.7]}
60... Rb3 {[%clk 0:00:03.3]} 61. g5 {[%clk 0:00:05]} 61... a3 {[%clk 0:00:03.9]}
62. h4 {[%clk 0:00:04.6]} 62... b4 {[%clk 0:00:03.3]} 63. g6 {[%clk 0:00:05]}
63... Rb2 {[%clk 0:00:03.7]} 64. g7 {[%clk 0:00:05]} 64... Rg2 {[%clk
0:00:03.6]} 65. Ra8+ {[%clk 0:00:03.5]} 65... Kd7 {[%clk 0:00:03.9]} 0-1

[Event "*** Titled Tuesday Blitz"]
[Site "Chess.com"]
[Date "2020.11.24"]
[Round "4"]
[White "RobertoJBM"]
[Black "GameOverBro"]
[Result "1/2-1/2"]
[WhiteElo "2692"]
[BlackElo "2508"]
[TimeControl "180+1"]
[EndTime "10:56:47 PST"]
[Termination "Game drawn by agreement"]

1. d4 {[%clk 0:03:00.9]} 1... d6 {[%clk 0:02:59.5]} 2. e4 {[%clk 0:03:00.5]}
2... Nf6 {[%clk 0:03:00.1]} 3. Nc3 {[%clk 0:03:00.5]} 3... e5 {[%clk 0:03:00.7]}
4. dxe5 {[%clk 0:02:53.4]} 4... dxe5 {[%clk 0:03:01.6]} 5. Qxd8+ {[%clk
0:02:53.7]} 5... Kxd8 {[%clk 0:03:02.5]} 6. Bc4 {[%clk 0:02:54.3]} 6... Ke8
{[%clk 0:03:02.9]} 7. f3 {[%clk 0:02:53.5]} 7... c6 {[%clk 0:03:02.7]} 8. Be3
{[%clk 0:02:53.4]} 8... Nbd7 {[%clk 0:03:03.4]} 9. a4 {[%clk 0:02:53.1]} 9...
Bc5 {[%clk 0:03:03.8]} 10. Kf2 {[%clk 0:02:51.9]} 10... a5 {[%clk 0:03:00.5]}
11. Nge2 {[%clk 0:02:50.6]} 11... Ke7 {[%clk 0:03:00.1]} 12. Rhd1 {[%clk
0:02:50.1]} 12... Bxe3+ {[%clk 0:02:58.4]} 13. Kxe3 {[%clk 0:02:50]} 13... Nc5
{[%clk 0:02:58.8]} 14. Nc1 {[%clk 0:02:48.3]} 14... h5 {[%clk 0:02:55.9]} 15.
Nd3 {[%clk 0:02:48.1]} 15... Nfd7 {[%clk 0:02:55.3]} 16. b3 {[%clk 0:02:40.2]}
16... f6 {[%clk 0:02:47.8]} 17. Rd2 {[%clk 0:02:39.4]} 17... Nxd3 {[%clk
0:02:42.3]} 18. Bxd3 {[%clk 0:02:38.9]} 18... Nb6 {[%clk 0:02:32]} 19. Rad1
{[%clk 0:02:38.1]} 19... Be6 {[%clk 0:02:31.9]} 20. Be2 {[%clk 0:02:26.6]} 20...
h4 {[%clk 0:02:25.5]} 21. Nb1 {[%clk 0:02:16.4]} 21... g5 {[%clk 0:02:23.4]} 22.
Na3 {[%clk 0:02:12.6]} 22... Rhd8 {[%clk 0:02:20.6]} 23. Rxd8 {[%clk 0:02:10.5]}
23... Rxd8 {[%clk 0:02:21.5]} 24. Rxd8 {[%clk 0:02:10.7]} 24... Kxd8 {[%clk
0:02:22]} 25. g3 {[%clk 0:02:11.6]} 25... hxg3 {[%clk 0:02:21.4]} 26. hxg3
{[%clk 0:02:11.9]} 26... Ke7 {[%clk 0:02:21.8]} 27. Nb1 {[%clk 0:02:10.5]} 27...
Kd6 {[%clk 0:02:20.2]} 28. Kd2 {[%clk 0:02:08.1]} 28... Kc5 {[%clk 0:02:19.5]}
29. Kc3 {[%clk 0:02:06]} 29... Nc8 {[%clk 0:02:18.8]} 30. Nd2 {[%clk 0:02:04.9]}
30... Nd6 {[%clk 0:02:18.8]} 31. Bd3 {[%clk 0:02:02.8]} 31... b5 {[%clk
0:02:16.6]} 32. axb5 {[%clk 0:02:02.4]} 32... cxb5 {[%clk 0:02:17.5]} 33. Nf1
{[%clk 0:02:00.1]} 33... Nc8 {[%clk 0:01:42.5]} 34. Ne3 {[%clk 0:01:58]} 34...
Nb6 {[%clk 0:01:42.7]} 35. Bf1 {[%clk 0:01:46.1]} 35... Nd7 {[%clk 0:01:34.9]}
36. Bd3 {[%clk 0:01:45]} 36... Nb8 {[%clk 0:01:34.9]} 37. Kd2 {[%clk 0:01:39.2]}
37... Nc6 {[%clk 0:01:34.6]} 38. Be2 {[%clk 0:01:36.1]} 38... Nd4 {[%clk
0:01:33.6]} 39. Bd1 {[%clk 0:01:36.2]} 39... b4 {[%clk 0:01:07.3]} 40. Kd3
{[%clk 0:01:34.2]} 40... Nb5 {[%clk 0:01:01.5]} 41. Be2 {[%clk 0:01:23.5]} 41...
Nc3 {[%clk 0:00:57.8]} 42. Bf1 {[%clk 0:01:19.7]} 42... Nb1 {[%clk 0:00:55.1]}
43. Nd1 {[%clk 0:01:05.2]} 43... Na3 {[%clk 0:00:48.2]} 44. Nb2 {[%clk
0:01:03.9]} 44... Bd7 {[%clk 0:00:43.6]} 45. Kd2 {[%clk 0:01:00.9]} 45... Nb1+
{[%clk 0:00:42.5]} 46. Ke3 {[%clk 0:00:57]} 46... Nc3 {[%clk 0:00:42]} 47. Bc4
{[%clk 0:00:53.2]} 47... Bh3 {[%clk 0:00:37.2]} 48. Nd3+ {[%clk 0:00:53.3]}
48... Kd6 {[%clk 0:00:36.5]} 49. Nb2 {[%clk 0:00:46.7]} 49... Bg2 {[%clk
0:00:35.4]} 50. g4 {[%clk 0:00:41.9]} 50... Kc5 {[%clk 0:00:31.9]} 51. Nd3+
{[%clk 0:00:32]} 51... Kd6 {[%clk 0:00:31.5]} 52. Ne1 {[%clk 0:00:32.9]} 52...
Bh1 {[%clk 0:00:25.5]} 53. Bf1 {[%clk 0:00:31.2]} 53... Nd1+ {[%clk 0:00:21.1]}
54. Kd2 {[%clk 0:00:29.7]} 54... Nf2 {[%clk 0:00:20.2]} 55. Ke2 {[%clk
0:00:25.9]} 55... Nxe4 {[%clk 0:00:20.1]} 56. fxe4 {[%clk 0:00:23.3]} 56... Bxe4
{[%clk 0:00:21]} 57. Bg2 {[%clk 0:00:22.3]} 57... Bg6 {[%clk 0:00:20.2]} 58. Ke3
{[%clk 0:00:21.5]} 58... f5 {[%clk 0:00:20.3]} 59. gxf5 {[%clk 0:00:21.5]} 59...
Bxf5 {[%clk 0:00:21.2]} 60. Be4 {[%clk 0:00:22.3]} 60... Be6 {[%clk 0:00:21.4]}
61. Nf3 {[%clk 0:00:21]} 61... g4 {[%clk 0:00:21.6]} 62. Nd2 {[%clk 0:00:21]}
62... Kc5 {[%clk 0:00:21.5]} 63. Bd3 {[%clk 0:00:20.5]} 63... Bd5 {[%clk
0:00:20.7]} 64. Be4 {[%clk 0:00:20.7]} 64... Be6 {[%clk 0:00:20.6]} 65. Nf1
{[%clk 0:00:20.9]} 65... Kb5 {[%clk 0:00:19.2]} 66. Bd3+ {[%clk 0:00:19.2]}
66... Kc5 {[%clk 0:00:18.4]} 67. Ng3 {[%clk 0:00:20.1]} 67... Bd7 {[%clk
0:00:16.8]} 68. Ne4+ {[%clk 0:00:19.7]} 68... Kb6 {[%clk 0:00:16.1]} 69. Be2
{[%clk 0:00:19.6]} 69... a4 {[%clk 0:00:16.1]} 70. bxa4 {[%clk 0:00:19.5]} 70...
Bxa4 {[%clk 0:00:17]} 71. Kd2 {[%clk 0:00:16.2]} 71... Kc6 {[%clk 0:00:17]} 72.
Bxg4 {[%clk 0:00:16.1]} 72... Kd5 {[%clk 0:00:17]} 73. Bf3 {[%clk 0:00:16.4]}
73... Kd4 {[%clk 0:00:17.5]} 74. Ng3 {[%clk 0:00:15.6]} 74... b3 {[%clk
0:00:15.2]} 75. Ne2+ {[%clk 0:00:12.9]} 75... Kc4 {[%clk 0:00:14.2]} 76. cxb3+
{[%clk 0:00:11.7]} 76... Bxb3 {[%clk 0:00:14.4]} 77. Ke3 {[%clk 0:00:12.3]}
77... Bd1 {[%clk 0:00:13.5]} 1/2-1/2

[Event "*** Titled Tuesday Blitz"]
[Site "Chess.com"]
[Date "2020.11.24"]
[Round "4"]
[White "biostatistician"]
[Black "ZverevLev"]
[Result "1-0"]
[WhiteElo "2550"]
[BlackElo "2283"]
[TimeControl "180+1"]
[EndTime "10:56:50 PST"]
[Termination "biostatistician won by resignation"]

1. d4 {[%clk 0:02:58.5]} 1... Nf6 {[%clk 0:02:57.3]} 2. Nf3 {[%clk 0:02:59.4]}
2... d5 {[%clk 0:02:54.6]} 3. c4 {[%clk 0:02:58]} 3... e6 {[%clk 0:02:53.7]} 4.
Bg5 {[%clk 0:02:57.8]} 4... Be7 {[%clk 0:02:50]} 5. e3 {[%clk 0:02:57.1]} 5...
c6 {[%clk 0:02:46.9]} 6. Nc3 {[%clk 0:02:57.6]} 6... O-O {[%clk 0:02:45.2]} 7.
Bd3 {[%clk 0:02:57.5]} 7... dxc4 {[%clk 0:02:43.3]} 8. Bxc4 {[%clk 0:02:58.4]}
8... b5 {[%clk 0:02:41.1]} 9. Bd3 {[%clk 0:02:58.6]} 9... Bb7 {[%clk 0:02:38.1]}
10. O-O {[%clk 0:02:58.8]} 10... a6 {[%clk 0:02:37.6]} 11. Qc2 {[%clk
0:02:56.4]} 11... Nbd7 {[%clk 0:02:34.7]} 12. Bxf6 {[%clk 0:02:55.4]} 12... Nxf6
{[%clk 0:02:34.2]} 13. Ne4 {[%clk 0:02:56]} 13... Nxe4 {[%clk 0:02:15.1]} 14.
Bxe4 {[%clk 0:02:56.9]} 14... h6 {[%clk 0:02:12]} 15. Rac1 {[%clk 0:02:52.5]}
15... Rc8 {[%clk 0:02:10.3]} 16. Ne5 {[%clk 0:02:51.9]} 16... Bd6 {[%clk
0:01:31.3]} 17. Nxc6 {[%clk 0:02:45.9]} 17... Qg5 {[%clk 0:01:22.2]} 18. Qb1
{[%clk 0:02:33.5]} 18... f5 {[%clk 0:01:19.1]} 19. Bf3 {[%clk 0:02:33]} 19...
Qf6 {[%clk 0:01:15.4]} 20. Rc2 {[%clk 0:02:21.9]} 20... Rc7 {[%clk 0:00:55.4]}
21. d5 {[%clk 0:01:03.9]} 21... exd5 {[%clk 0:00:46.8]} 22. Bxd5+ {[%clk
0:01:04.8]} 22... Kh8 {[%clk 0:00:45.4]} 23. Rfc1 {[%clk 0:00:35.2]} 23... Rfc8
{[%clk 0:00:37.2]} 24. g3 {[%clk 0:00:33.8]} 24... g5 {[%clk 0:00:22.6]} 25. Nb4
{[%clk 0:00:26.8]} 25... Rxc2 {[%clk 0:00:17.7]} 26. Rxc2 {[%clk 0:00:26.6]}
26... Rxc2 {[%clk 0:00:17.5]} 27. Qxc2 {[%clk 0:00:27.1]} 27... Bxd5 {[%clk
0:00:15.2]} 28. Nxd5 {[%clk 0:00:28]} 28... Qe5 {[%clk 0:00:14.2]} 29. Qc3
{[%clk 0:00:26.3]} 29... Kg7 {[%clk 0:00:08.5]} 30. b3 {[%clk 0:00:24.3]} 30...
Kf7 {[%clk 0:00:06.9]} 31. Qxe5 {[%clk 0:00:23.7]} 31... Bxe5 {[%clk 0:00:07.8]}
32. f4 {[%clk 0:00:23.6]} 32... Bd6 {[%clk 0:00:06.4]} 33. Kf2 {[%clk
0:00:23.3]} 33... Ke6 {[%clk 0:00:05.8]} 34. Nc3 {[%clk 0:00:23.7]} 34... Bb4
{[%clk 0:00:05.9]} 35. Ne2 {[%clk 0:00:22.4]} 35... Bc5 {[%clk 0:00:06.5]} 36.
fxg5 {[%clk 0:00:16.3]} 36... hxg5 {[%clk 0:00:05.9]} 37. h4 {[%clk 0:00:16.9]}
37... gxh4 {[%clk 0:00:05.4]} 38. gxh4 {[%clk 0:00:17.8]} 38... Ke5 {[%clk
0:00:06.1]} 39. Kf3 {[%clk 0:00:18.5]} 39... Be7 {[%clk 0:00:05.1]} 40. h5
{[%clk 0:00:18.4]} 40... Bg5 {[%clk 0:00:05.7]} 41. Nd4 {[%clk 0:00:18.3]} 41...
f4 {[%clk 0:00:04.4]} 42. Nc6+ {[%clk 0:00:16.3]} 42... Kf5 {[%clk 0:00:04.3]}
43. exf4 {[%clk 0:00:16]} 43... Bxf4 {[%clk 0:00:03.9]} 44. Ne7+ {[%clk
0:00:13.4]} 44... Kg5 {[%clk 0:00:02.1]} 45. h6 {[%clk 0:00:13.7]} 45... Be5
{[%clk 0:00:02.7]} 46. h7 {[%clk 0:00:12]} 46... Kh6 {[%clk 0:00:03.3]} 47. Nc6
{[%clk 0:00:11.6]} 47... Bf6 {[%clk 0:00:02.9]} 48. Nb8 {[%clk 0:00:11.2]} 48...
a5 {[%clk 0:00:01.5]} 49. Ke4 {[%clk 0:00:10.9]} 49... Bg7 {[%clk 0:00:01.6]}
50. Kd5 {[%clk 0:00:10.5]} 50... a4 {[%clk 0:00:02.4]} 51. b4 {[%clk 0:00:09.5]}
51... a3 {[%clk 0:00:01.7]} 52. Kc5 {[%clk 0:00:09.2]} 52... Kxh7 {[%clk
0:00:02.6]} 53. Kxb5 {[%clk 0:00:09.4]} 53... Be5 {[%clk 0:00:02.4]} 54. Nc6
{[%clk 0:00:09.2]} 54... Bd6 {[%clk 0:00:00.8]} 55. Ka6 {[%clk 0:00:07]} 55...
Kg6 {[%clk 0:00:01.7]} 56. b5 {[%clk 0:00:07.5]} 56... Kf6 {[%clk 0:00:02.3]}
57. b6 {[%clk 0:00:07.9]} 57... Ke6 {[%clk 0:00:03.2]} 58. b7 {[%clk 0:00:08.1]}
58... Kd5 {[%clk 0:00:03.9]} 59. Kb5 {[%clk 0:00:08.3]} 59... Ke4 {[%clk
0:00:03.5]} 60. Kc4 {[%clk 0:00:07]} 60... Ke3 {[%clk 0:00:03.1]} 61. b8=Q
{[%clk 0:00:06.7]} 61... Bc7 {[%clk 0:00:03.1]} 62. Qxc7 {[%clk 0:00:06.8]} 1-0